[Event "British Rapidplay Championship 2023"]
[Site "Mercure Bradford, Bankfield Hotel"]
[Date "2023.04.15"]
[Round "3.21"]
[White "Holi, Siefaldin A"]
[Black "Hutchinson, Paul A"]
[Result "0-1"]
[TimeControl "15 minutes plus 10 seconds per move"]
[WhiteElo "1818"]
[BlackElo "2184"]

1. d4 {[%clk 00:15:17]} {[%emt 00:00:03]} d5 {[%clk 00:15:19]} {[%emt
00:00:02]} 2. c4 {[%clk 00:15:26]} e6 {[%clk 00:15:25]} {[%emt 00:00:04]} 3. a3
{[%clk 00:15:34]} {[%emt 00:00:02]} a5 {[%clk 00:15:24]} {[%emt 00:00:10]} 4.
Nc3 {[%clk 00:15:42]} {[%emt 00:00:02]} Nf6 {[%clk 00:15:30]} {[%emt 00:00:05]}
5. Nf3 {[%clk 00:15:30]} {[%emt 00:00:21]} Nbd7 {[%clk 00:15:32]} {[%emt
00:00:08]} 6. Ne5 {[%clk 00:15:31]} {[%emt 00:00:09]} Nxe5 {[%clk 00:15:35]}
{[%emt 00:00:07]} 7. dxe5 {[%clk 00:15:40]} {[%emt 00:00:01]} Nd7 {[%clk
00:15:44]} {[%emt 00:00:02]} 8. Bf4 {[%clk 00:14:43]} {[%emt 00:01:05]} c6
{[%clk 00:15:53]} {[%emt 00:00:03]} 9. e3 {[%clk 00:14:40]} {[%emt 00:00:13]}
g5 {[%clk 00:15:42]} {[%emt 00:00:20]} 10. Bg3 {[%clk 00:14:45]} {[%emt
00:00:05]} h5 {[%clk 00:15:51]} {[%emt 00:00:02]} 11. h4 {[%clk 00:14:38]}
{[%emt 00:00:13]} g4 {[%clk 00:15:59]} {[%emt 00:00:06]} 12. Bd3 {[%clk
00:14:30]} {[%emt 00:00:17]} Bg7 {[%clk 00:16:07]} {[%emt 00:00:03]} 13. cxd5
{[%clk 00:14:11]} {[%emt 00:00:29]} exd5 {[%clk 00:15:35]} {[%emt 00:00:41]} 14.
e6 {[%clk 00:14:15]} {[%emt 00:00:06]} fxe6 {[%clk 00:15:44]} {[%emt 00:00:02]}
15. Bg6+ {[%clk 00:14:21]} {[%emt 00:00:04]} Kf8 {[%clk 00:15:52]} {[%emt
00:00:02]} 16. O-O {[%clk 00:14:11]} {[%emt 00:00:20]} Kg8 {[%clk 00:15:10]}
{[%emt 00:00:53]} 17. f3 {[%clk 00:14:19]} {[%emt 00:00:02]} Qf6 {[%clk
00:15:18]} {[%emt 00:00:02]} 18. Qc2 {[%clk 00:14:09]} {[%emt 00:00:18]} Rh6
{[%clk 00:14:56]} {[%emt 00:00:34]} 19. Bd3 {[%clk 00:14:09]} {[%emt 00:00:09]}
gxf3 {[%clk 00:14:48]} {[%emt 00:00:18]} 20. Rxf3 {[%clk 00:14:07]} {[%emt
00:00:12]} Qe7 {[%clk 00:14:56]} {[%emt 00:00:02]} 21. Raf1 {[%clk 00:13:37]}
{[%emt 00:00:41]} Nf6 {[%clk 00:14:43]} {[%emt 00:00:22]} 22. Bf4 {[%clk
00:13:29]} {[%emt 00:00:14]} Rh8 {[%clk 00:14:52]} {[%emt 00:00:06]} 23. Bg5
{[%clk 00:13:36]} {[%emt 00:00:03]} e5 {[%clk 00:14:42]} {[%emt 00:00:20]} 24.
Rg3 {[%clk 00:12:11]} {[%emt 00:01:34]} Bg4 {[%clk 00:14:48]} {[%emt 00:00:04]}
25. Bf5 {[%clk 00:12:03]} {[%emt 00:00:18]} Qd6 {[%clk 00:14:44]} {[%emt
00:00:14]} 26. Bxf6 {[%clk 00:11:52]} {[%emt 00:00:21]} e4 {[%clk 00:13:23]}
{[%emt 00:01:31]} 27. Qf2 {[%clk 00:07:49]} {[%emt 00:04:13]} Qxf6 {[%clk
00:13:16]} {[%emt 00:00:18]} 28. Bxg4 {[%clk 00:07:38]} {[%emt 00:00:18]} Qxf2+
{[%clk 00:13:20]} 29. Rxf2 {[%clk 00:07:43]} {[%emt 00:00:14]} hxg4 {[%emt
00:00:10]} 30. Rxg4 {[%clk 00:07:39]} {[%emt 00:00:05]} Rf8 {[%clk 00:13:38]}
{[%emt 00:00:01]} 31. Ne2 {[%clk 00:07:33]} {[%emt 00:00:16]} Rxf2 {[%clk
00:13:45]} {[%emt 00:00:03]} 32. Kxf2 {[%clk 00:07:38]} {[%emt 00:00:05]} Kf7
{[%clk 00:13:52]} {[%emt 00:00:02]} 33. b3 {[%clk 00:07:40]} {[%emt 00:00:08]}
b5 {[%clk 00:13:48]} {[%emt 00:00:14]} 34. Ng3 {[%clk 00:07:29]} {[%emt
00:00:21]} Bb2 {[%clk 00:13:41]} {[%emt 00:00:17]} 35. a4 {[%clk 00:07:33]}
{[%emt 00:00:06]} bxa4 {[%clk 00:13:49]} {[%emt 00:00:02]} 36. bxa4 {[%clk
00:07:42]} Kf6 {[%clk 00:13:40]} {[%emt 00:00:19]} 37. Rf4+ {[%clk 00:07:29]}
{[%emt 00:00:24]} Ke6 {[%clk 00:13:49]} {[%emt 00:00:01]} 38. Rf5 {[%clk
00:07:18]} {[%emt 00:00:17]} Rxh4 {[%clk 00:13:43]} {[%emt 00:00:19]} 39. Rg5
{[%clk 00:07:23]} {[%emt 00:00:05]} Rh8 {[%clk 00:13:39]} {[%emt 00:00:15]} 40.
Rg6+ {[%clk 00:07:14]} {[%emt 00:00:19]} Kd7 {[%clk 00:13:47]} {[%emt
00:00:01]} 41. Nf5 {[%clk 00:07:16]} {[%emt 00:00:08]} Be5 {[%clk 00:13:54]}
{[%emt 00:00:03]} 42. Ke2 {[%clk 00:07:06]} {[%emt 00:00:19]} c5 {[%clk
00:13:55]} {[%emt 00:00:11]} 43. Ra6 {[%clk 00:07:04]} {[%emt 00:00:11]} Bc7
{[%clk 00:13:58]} {[%emt 00:00:08]} 44. Ra7 {[%clk 00:06:53]} {[%emt 00:00:21]}
Rg8 {[%clk 00:13:59]} {[%emt 00:00:08]} 45. Kf2 {[%clk 00:06:55]} {[%emt
00:00:07]} Rf8 {[%clk 00:13:20]} {[%emt 00:00:50]} 46. g4 {[%clk 00:06:50]}
{[%emt 00:00:15]} Rg8 {[%clk 00:13:29]} {[%emt 00:00:01]} 47. Nh6 {[%clk
00:06:43]} {[%emt 00:00:18]} Rg6 {[%clk 00:13:37]} {[%emt 00:00:02]} 48. Nf7
{[%clk 00:06:18]} {[%emt 00:00:34]} Rf6+ {[%clk 00:13:45]} {[%emt 00:00:03]} 49.
Kg2 {[%clk 00:06:21]} {[%emt 00:00:07]} Rxf7 {[%clk 00:13:53]} {[%emt
00:00:01]} 50. Kh3 {[%clk 00:06:30]} Rh7+ {[%clk 00:14:02]} {[%emt 00:00:03]}
51. Kg2 {[%clk 00:06:38]} {[%emt 00:00:02]} Rh2+ {[%clk 00:14:09]} {[%emt
00:00:02]} 52. Kg1 {[%clk 00:06:41]} {[%emt 00:00:07]} Rh4 {[%clk 00:14:17]}
{[%emt 00:00:02]} 53. Kg2 {[%clk 00:06:33]} {[%emt 00:00:17]} Rxg4+ {[%clk
00:14:25]} {[%emt 00:00:03]} 54. Kf2 {[%clk 00:06:42]} c4 {[%clk 00:14:24]}
{[%emt 00:00:12]} 55. Ke2 {[%clk 00:06:32]} {[%emt 00:00:20]} Rg2+ {[%clk
00:14:31]} {[%emt 00:00:04]} 56. Kd1 {[%emt 00:00:07]} Ra2 {[%clk 00:14:33]}
{[%emt 00:00:05]} 57. Kc1 {[%emt 00:00:06]} Rxa4 {[%clk 00:14:36]} {[%emt
00:00:04]} 58. Kc2 {[%clk 00:06:54]} Ra3 {[%clk 00:14:41]} {[%emt 00:00:05]} 59.
Kd2 {[%clk 00:07:02]} {[%emt 00:00:03]} Rd3+ {[%clk 00:14:49]} {[%emt
00:00:02]} 60. Ke2 {[%clk 00:07:05]} {[%emt 00:00:06]} c3 {[%clk 00:14:58]}
{[%emt 00:00:01]} 61. Ra6 {[%clk 00:06:36]} {[%emt 00:00:40]} c2 {[%clk
00:15:06]} {[%emt 00:00:01]} 62. Rh6 {[%clk 00:06:40]} {[%emt 00:00:05]} c1=Q
{[%clk 00:15:12]} {[%emt 00:00:06]} 63. Rh7+ {[%clk 00:06:48]} {[%emt
00:00:02]} Kc6 {[%clk 00:15:19]} {[%emt 00:00:02]} 64. Rh6+ {[%clk 00:06:56]}
{[%emt 00:00:03]} Kc5 {[%clk 00:15:25]} {[%emt 00:00:04]} 65. Kf2 {[%clk
00:06:53]} {[%emt 00:00:13]} Qxe3+ {[%clk 00:15:32]} {[%emt 00:00:03]} 0-1

[Event "British Rapidplay Championship 2023"]
[Site "Mercure Bradford, Bankfield Hotel"]
[Date "2023.04.15"]
[Round "3.22"]
[White "Jackson, Sheila"]
[Black "Deepak Ambattu, Rithvik"]
[Result "0-1"]
[TimeControl "15 minutes plus 10 seconds per move"]
[WhiteElo "2140"]
[BlackElo "1782"]

1. e4 {[%clk 00:15:19]} c5 {[%clk 00:15:18]} {[%emt 00:00:02]} 2. c3 {[%clk
00:15:27]} {[%emt 00:00:03]} d5 {[%clk 00:15:26]} {[%emt 00:00:02]} 3. exd5
{[%clk 00:15:36]} {[%emt 00:00:01]} Qxd5 {[%clk 00:15:31]} {[%emt 00:00:04]} 4.
d4 {[%clk 00:15:45]} g6 {[%clk 00:15:35]} {[%emt 00:00:06]} 5. Nf3 {[%clk
00:15:53]} {[%emt 00:00:03]} Bg7 {[%clk 00:15:43]} {[%emt 00:00:02]} 6. Be3
{[%clk 00:16:01]} {[%emt 00:00:02]} cxd4 {[%clk 00:15:51]} {[%emt 00:00:03]} 7.
cxd4 {[%clk 00:16:08]} {[%emt 00:00:02]} Nf6 {[%clk 00:15:57]} {[%emt
00:00:04]} 8. Nc3 {[%clk 00:16:17]} {[%emt 00:00:01]} Qd8 {[%clk 00:16:03]}
{[%emt 00:00:02]} 9. h3 {[%clk 00:16:17]} {[%emt 00:00:11]} O-O {[%clk
00:15:59]} {[%emt 00:00:14]} 10. Bc4 {[%clk 00:16:22]} {[%emt 00:00:06]} Nc6
{[%clk 00:16:00]} {[%emt 00:00:09]} 11. a3 {[%clk 00:16:27]} {[%emt 00:00:05]}
e6 {[%clk 00:15:53]} {[%emt 00:00:16]} 12. O-O {[%clk 00:16:31]} {[%emt
00:00:06]} a6 {[%clk 00:15:51]} {[%emt 00:00:12]} 13. Rc1 {[%clk 00:16:20]}
{[%emt 00:00:21]} b5 {[%clk 00:15:51]} {[%emt 00:00:10]} 14. Ba2 {[%clk
00:15:35]} {[%emt 00:00:55]} Bb7 {[%clk 00:15:53]} {[%emt 00:00:07]} 15. Qd2
{[%clk 00:14:56]} {[%emt 00:00:50]} Rc8 {[%clk 00:15:02]} {[%emt 00:01:01]} 16.
Rfd1 {[%clk 00:15:02]} {[%emt 00:00:04]} Ne7 {[%clk 00:14:46]} {[%emt
00:00:25]} 17. Ne5 {[%clk 00:14:50]} {[%emt 00:00:22]} Ned5 {[%clk 00:14:14]}
{[%emt 00:00:42]} 18. Nxd5 {[%clk 00:14:46]} {[%emt 00:00:15]} Bxd5 {[%clk
00:13:57]} {[%emt 00:00:28]} 19. Bb1 {[%clk 00:13:22]} {[%emt 00:01:33]} Bb7
{[%clk 00:11:58]} {[%emt 00:02:08]} 20. Bg5 {[%clk 00:13:08]} {[%emt 00:00:24]}
Qd5 {[%clk 00:11:42]} {[%emt 00:00:25]} 21. f3 {[%clk 00:13:10]} {[%emt
00:00:10]} Qd6 {[%clk 00:08:34]} {[%emt 00:03:18]} 22. Bf4 {[%clk 00:11:56]}
{[%emt 00:01:23]} Nd5 {[%clk 00:06:40]} {[%emt 00:02:04]} 23. Bh2 {[%clk
00:11:08]} {[%emt 00:00:58]} Qe7 {[%clk 00:06:44]} {[%emt 00:00:06]} 24. Be4
{[%clk 00:10:28]} {[%emt 00:00:50]} Qh4 {[%clk 00:05:57]} {[%emt 00:00:57]} 25.
Qf2 {[%clk 00:08:55]} {[%emt 00:01:43]} Qxf2+ {[%clk 00:05:29]} {[%emt
00:00:38]} 26. Kxf2 {[%clk 00:09:04]} {[%emt 00:00:01]} Bh6 {[%clk 00:05:10]}
{[%emt 00:00:29]} 27. f4 {[%clk 00:07:30]} {[%emt 00:01:44]} Rfd8 {[%clk
00:04:06]} {[%emt 00:01:13]} 28. Rxc8 {[%clk 00:05:52]} {[%emt 00:01:48]} Rxc8
{[%clk 00:04:13]} {[%emt 00:00:03]} 29. g3 {[%clk 00:05:52]} {[%emt 00:00:10]}
Nc3 {[%clk 00:04:03]} {[%emt 00:00:19]} 30. bxc3 {[%clk 00:05:18]} {[%emt
00:00:44]} Bxe4 {[%clk 00:04:11]} {[%emt 00:00:03]} 31. Rc1 {[%clk 00:04:53]}
{[%emt 00:00:36]} Bf8 {[%clk 00:04:09]} {[%emt 00:00:11]} 32. Ke3 {[%clk
00:03:17]} {[%emt 00:01:46]} Bxa3 {[%clk 00:03:53]} {[%emt 00:00:26]} 33. Ra1
{[%clk 00:03:22]} {[%emt 00:00:05]} Rxc3+ {[%clk 00:04:01]} {[%emt 00:00:02]}
34. Kf2 {[%clk 00:02:24]} {[%emt 00:01:08]} Bd5 {[%clk 00:03:14]} {[%emt
00:00:56]} 35. Bg1 {[%clk 00:02:33]} {[%emt 00:00:12]} Rc2+ {[%clk 00:03:21]}
{[%emt 00:00:12]} 36. Ke3 {[%clk 00:02:33]} {[%emt 00:00:10]} b4 {[%clk
00:03:27]} {[%emt 00:00:05]} 37. Nd7 {[%clk 00:02:22]} {[%emt 00:00:21]} Bc1+
{[%clk 00:02:55]} {[%emt 00:00:42]} 38. Kd3 {[%clk 00:02:11]} {[%emt 00:00:22]}
Rd2+ {[%clk 00:03:02]} {[%emt 00:00:02]} 39. Ke3 {[%clk 00:02:17]} {[%emt
00:00:04]} Rd1+ {[%clk 00:03:10]} {[%emt 00:00:02]} 40. Kf2 {[%clk 00:02:15]}
{[%emt 00:00:12]} Be3+ {[%clk 00:03:18]} {[%emt 00:00:02]} 41. Kxe3 {[%clk
00:02:22]} {[%emt 00:00:04]} Rxa1 {[%clk 00:03:26]} {[%emt 00:00:02]} 42. Bf2
{[%clk 00:02:26]} {[%emt 00:00:06]} b3 {[%clk 00:03:31]} {[%emt 00:00:04]} 0-1

[Event "British Rapidplay Championship 2023"]
[Site "Mercure Bradford, Bankfield Hotel"]
[Date "2023.04.15"]
[Round "3.23"]
[White "Cuaresma, Bien"]
[Black "Quilter, Thomas A"]
[Result "1-0"]
[TimeControl "15 minutes plus 10 seconds per move"]
[WhiteElo "1798"]
[BlackElo "2134"]

1. e4 {[%clk 00:15:11]} {[%emt 00:00:07]} b6 {[%clk 00:15:19]} {[%emt
00:00:02]} 2. Nc3 {[%clk 00:15:16]} {[%emt 00:00:06]} Bb7 {[%clk 00:15:28]} 3.
d4 {[%clk 00:15:21]} {[%emt 00:00:05]} e6 {[%clk 00:15:37]} {[%emt 00:00:02]} 4.
Nf3 {[%clk 00:15:27]} {[%emt 00:00:03]} c5 {[%clk 00:15:39]} {[%emt 00:00:08]}
5. d5 {[%clk 00:15:13]} {[%emt 00:00:24]} d6 {[%clk 00:15:00]} {[%emt
00:00:49]} 6. Bb5+ {[%clk 00:15:14]} {[%emt 00:00:09]} Nd7 {[%clk 00:15:09]}
{[%emt 00:00:02]} 7. dxe6 {[%clk 00:15:10]} {[%emt 00:00:13]} fxe6 {[%clk
00:15:17]} {[%emt 00:00:02]} 8. Ng5 {[%clk 00:15:18]} {[%emt 00:00:02]} Qe7
{[%clk 00:15:00]} {[%emt 00:00:28]} 9. f4 {[%clk 00:14:14]} {[%emt 00:01:14]}
O-O-O {[%clk 00:14:37]} {[%emt 00:00:33]} 10. O-O {[%clk 00:13:13]} {[%emt
00:01:11]} h6 {[%clk 00:13:35]} {[%emt 00:01:12]} 11. Qh5 {[%clk 00:12:01]}
{[%emt 00:01:21]} Ngf6 {[%clk 00:07:48]} {[%emt 00:05:58]} 12. Qh3 {[%clk
00:12:07]} {[%emt 00:00:04]} Re8 {[%clk 00:07:25]} {[%emt 00:00:33]} 13. e5
{[%clk 00:11:35]} {[%emt 00:00:42]} dxe5 {[%clk 00:03:38]} {[%emt 00:03:57]} 14.
fxe5 {[%clk 00:11:29]} {[%emt 00:00:16]} Nxe5 {[%clk 00:03:32]} {[%emt
00:00:16]} 15. Bxe8 {[%clk 00:11:29]} {[%emt 00:00:09]} hxg5 {[%clk 00:03:34]}
{[%emt 00:00:10]} 16. Qxh8 {[%clk 00:11:09]} {[%emt 00:00:29]} Qxe8 {[%clk
00:03:42]} {[%emt 00:00:02]} 17. Bxg5 {[%clk 00:10:50]} {[%emt 00:00:29]} Nf7
{[%clk 00:03:35]} {[%emt 00:00:18]} 18. Qh4 {[%clk 00:10:51]} {[%emt 00:00:08]}
Qc6 {[%clk 00:03:39]} {[%emt 00:00:06]} 19. Rf2 {[%clk 00:10:49]} {[%emt
00:00:11]} Be7 {[%clk 00:03:23]} {[%emt 00:00:27]} 20. Bxf6 {[%clk 00:10:41]}
{[%emt 00:00:18]} Bxf6 {[%clk 00:03:30]} {[%emt 00:00:02]} 21. Qh5 {[%emt
00:00:27]} Bd4 {[%clk 00:03:36]} 22. Qf3 {[%clk 00:09:26]} {[%emt 00:01:12]}
Qxf3 {[%clk 00:03:20]} {[%emt 00:00:26]} 23. gxf3 {[%clk 00:09:33]} {[%emt
00:00:03]} Ng5 {[%clk 00:03:28]} {[%emt 00:00:03]} 24. Kf1 {[%clk 00:09:23]}
{[%emt 00:00:20]} Nxf3 {[%clk 00:03:16]} {[%emt 00:00:22]} 25. h3 {[%clk
00:08:35]} {[%emt 00:00:57]} e5 {[%clk 00:02:56]} {[%emt 00:00:31]} 26. Ke2
{[%clk 00:08:11]} {[%emt 00:00:32]} e4 {[%clk 00:03:03]} {[%emt 00:00:04]} 27.
Rg2 {[%clk 00:07:22]} {[%emt 00:00:59]} Ba6+ {[%clk 00:02:37]} {[%emt
00:00:37]} 28. Kd1 {[%clk 00:07:23]} {[%emt 00:00:08]} e3 {[%clk 00:02:24]}
{[%emt 00:00:23]} 29. a4 {[%clk 00:07:12]} {[%emt 00:00:22]} Nh4 {[%clk
00:02:12]} {[%emt 00:00:22]} 30. Rg4 {[%clk 00:06:46]} {[%emt 00:00:35]} g5
{[%clk 00:02:04]} {[%emt 00:00:18]} 31. Nb5 {[%clk 00:06:00]} {[%emt 00:00:56]}
Bxb2 {[%clk 00:02:00]} {[%emt 00:00:14]} 32. Rb1 {[%clk 00:06:09]} Bf6 {[%clk
00:02:03]} {[%emt 00:00:07]} 33. Nxa7+ {[%clk 00:05:54]} {[%emt 00:00:24]} Kd7
{[%clk 00:01:51]} {[%emt 00:00:22]} 34. Nb5 {[%clk 00:05:03]} {[%emt 00:01:02]}
Bb7 {[%clk 00:01:55]} {[%emt 00:00:06]} 35. Ke2 {[%clk 00:05:08]} {[%emt
00:00:04]} Nf5 {[%clk 00:01:12]} {[%emt 00:00:54]} 36. Rd1+ {[%clk 00:04:29]}
{[%emt 00:00:49]} Nd4+ {[%clk 00:01:13]} {[%emt 00:00:09]} 37. Nxd4 {[%clk
00:04:28]} {[%emt 00:00:08]} cxd4 {[%clk 00:01:22]} {[%emt 00:00:05]} 38.
Rdxd4+ {[%clk 00:04:36]} {[%emt 00:00:02]} Bxd4 {[%clk 00:01:05]} {[%emt
00:00:28]} 39. Rxd4+ {[%clk 00:04:45]} {[%emt 00:00:01]} Ke6 {[%clk 00:01:05]}
{[%emt 00:00:09]} 40. Kxe3 {[%clk 00:04:48]} {[%emt 00:00:06]} Bg2 {[%clk
00:01:13]} {[%emt 00:00:03]} 41. Rg4 {[%clk 00:04:57]} {[%emt 00:00:01]} Bxh3
{[%clk 00:01:10]} {[%emt 00:00:13]} 42. Rxg5 {[%clk 00:05:06]} {[%emt
00:00:01]} Bf5 {[%clk 00:01:17]} {[%emt 00:00:04]} 43. c4 {[%clk 00:05:04]}
{[%emt 00:00:11]} Bc2 {[%clk 00:01:24]} {[%emt 00:00:03]} 44. Rb5 {[%clk
00:05:13]} Bxa4 {[%clk 00:01:24]} {[%emt 00:00:11]} 45. Rxb6+ {[%clk 00:05:21]}
{[%emt 00:00:01]} Ke5 {[%clk 00:01:25]} {[%emt 00:00:09]} 46. Kd3 {[%clk
00:05:27]} {[%emt 00:00:05]} Be8 {[%clk 00:01:28]} {[%emt 00:00:06]} 47. Kc3
Bd7 {[%emt 00:00:12]} 48. Kb4 {[%clk 00:05:22]} {[%emt 00:00:04]} Bg4 {[%clk
00:01:32]} {[%emt 00:00:05]} 49. c5 {[%clk 00:05:25]} {[%emt 00:00:08]} Bf3
{[%clk 00:01:34]} {[%emt 00:00:08]} 50. Rd6 {[%clk 00:05:30]} {[%emt 00:00:05]}
Bd5 {[%clk 00:01:25]} {[%emt 00:00:20]} 51. Kb5 {[%clk 00:05:38]} {[%emt
00:00:02]} Bf3 {[%clk 00:01:22]} {[%emt 00:00:12]} 52. Kb6 {[%clk 00:05:42]}
{[%emt 00:00:05]} Bg2 {[%clk 00:01:30]} {[%emt 00:00:02]} 53. Kc7 {[%clk
00:05:44]} {[%emt 00:00:08]} Be4 {[%clk 00:01:33]} {[%emt 00:00:07]} 54. Rd1
{[%clk 00:05:47]} {[%emt 00:00:07]} Bf3 {[%clk 00:01:41]} {[%emt 00:00:03]} 55.
Rd2 {[%clk 00:05:45]} {[%emt 00:00:12]} Bh1 {[%clk 00:01:45]} {[%emt 00:00:06]}
56. Kb6 {[%clk 00:05:47]} {[%emt 00:00:07]} Bd5 {[%clk 00:01:51]} {[%emt
00:00:04]} 57. c6 {[%clk 00:05:56]} Be6 {[%clk 00:01:42]} {[%emt 00:00:19]} 58.
Re2+ {[%clk 00:06:05]} {[%emt 00:00:02]} Kd5 {[%clk 00:01:46]} {[%emt
00:00:06]} 59. Rxe6 {[%clk 00:06:12]} {[%emt 00:00:02]} Kxe6 {[%clk 00:01:50]}
{[%emt 00:00:06]} 60. c7 {[%clk 00:06:21]} {[%emt 00:00:01]} Kd7 {[%clk
00:01:58]} {[%emt 00:00:02]} 61. Kb7 {[%clk 00:06:30]} 1-0

[ePGN "0.1;DGT LiveChess/2.2.5"]

[Event "British Rapidplay Championship 2023"]
[Site "Mercure Bradford, Bankfield Hotel"]
[Date "2023.04.15"]
[Round "4.2"]
[White "Makkar, Rajat"]
[Black "Gormally, Daniel W"]
[Result "1/2-1/2"]
[TimeControl "15 minutes plus 10 seconds per move"]
[WhiteElo "2297"]
[BlackElo "2570"]

1. Nf3 {[%clk 00:15:13]} {[%emt 00:00:06]} Nf6 {[%clk 00:15:18]} {[%emt
00:00:03]} 2. c4 {[%clk 00:15:22]} {[%emt 00:00:01]} g6 {[%clk 00:15:22]}
{[%emt 00:00:06]} 3. Nc3 {[%clk 00:15:30]} {[%emt 00:00:01]} Bg7 {[%clk
00:15:31]} {[%emt 00:00:02]} 4. e4 {[%clk 00:15:38]} {[%emt 00:00:02]} e5
{[%clk 00:15:40]} {[%emt 00:00:01]} 5. Nxe5 {[%clk 00:15:30]} {[%emt 00:00:18]}
Qe7 {[%clk 00:15:49]} {[%emt 00:00:01]} 6. Nf3 {[%clk 00:13:21]} {[%emt
00:02:19]} Nxe4 {[%clk 00:15:56]} {[%emt 00:00:03]} 7. Nd5 {[%clk 00:11:53]}
{[%emt 00:01:38]} Qd8 {[%clk 00:15:02]} {[%emt 00:01:04]} 8. d3 {[%clk
00:10:20]} {[%emt 00:01:44]} Nc5 {[%clk 00:15:00]} {[%emt 00:00:11]} 9. Bg5
{[%clk 00:09:28]} {[%emt 00:01:02]} f6 {[%clk 00:15:09]} {[%emt 00:00:01]} 10.
Be3 {[%clk 00:09:37]} {[%emt 00:00:02]} Ne6 {[%clk 00:15:13]} {[%emt 00:00:06]}
11. h4 {[%clk 00:09:27]} {[%emt 00:00:19]} h5 {[%clk 00:13:40]} {[%emt
00:01:42]} 12. d4 {[%clk 00:09:23]} {[%emt 00:00:15]} f5 {[%clk 00:13:28]}
{[%emt 00:00:22]} 13. Ne5 {[%clk 00:08:33]} {[%emt 00:01:00]} Bxe5 {[%clk
00:13:18]} {[%emt 00:00:20]} 14. dxe5 {[%clk 00:08:41]} {[%emt 00:00:02]} Kf7
{[%clk 00:13:27]} 15. Bd3 {[%clk 00:08:24]} {[%emt 00:00:27]} Nc6 {[%clk
00:13:37]} {[%emt 00:00:01]} 16. Qc2 {[%clk 00:07:51]} {[%emt 00:00:43]} Ncd4
{[%clk 00:11:39]} {[%emt 00:02:07]} 17. Qd2 {[%clk 00:07:08]} {[%emt 00:00:53]}
d6 {[%clk 00:11:15]} {[%emt 00:00:35]} 18. exd6 {[%clk 00:07:02]} {[%emt
00:00:17]} Qxd6 {[%clk 00:11:24]} {[%emt 00:00:01]} 19. O-O-O {[%clk 00:06:45]}
{[%emt 00:00:26]} c6 {[%clk 00:10:36]} {[%emt 00:00:57]} 20. Nf4 {[%clk
00:06:22]} {[%emt 00:00:33]} Rd8 {[%clk 00:10:45]} {[%emt 00:00:02]} 21. Rh3
{[%clk 00:05:00]} {[%emt 00:01:32]} c5 {[%clk 00:09:35]} {[%emt 00:01:19]} 22.
Rg3 {[%clk 00:04:10]} {[%emt 00:01:01]} Nxf4 {[%clk 00:09:23]} {[%emt
00:00:22]} 23. Bxf4 {[%clk 00:04:19]} Qa6 {[%clk 00:09:32]} {[%emt 00:00:01]}
24. Kb1 {[%clk 00:03:52]} {[%emt 00:00:37]} Be6 {[%clk 00:09:41]} 25. Bc7
{[%clk 00:03:12]} {[%emt 00:00:49]} Rg8 {[%clk 00:08:56]} {[%emt 00:00:56]} 26.
Rc1 {[%clk 00:02:37]} {[%emt 00:00:46]} Rac8 {[%clk 00:08:53]} {[%emt
00:00:13]} 27. Be5 {[%clk 00:02:43]} {[%emt 00:00:03]} Nc6 {[%clk 00:09:01]}
{[%emt 00:00:02]} 28. Bc3 {[%clk 00:02:34]} {[%emt 00:00:20]} Rcd8 {[%clk
00:09:05]} {[%emt 00:00:06]} 29. Qh6 {[%clk 00:02:39]} {[%emt 00:00:04]} Nd4
{[%clk 00:09:13]} {[%emt 00:00:02]} 30. Re3 {[%clk 00:02:34]} {[%emt 00:00:15]}
b5 {[%clk 00:08:51]} {[%emt 00:00:32]} 31. Rce1 {[%clk 00:02:20]} {[%emt
00:00:24]} Rd6 {[%clk 00:09:00]} {[%emt 00:00:01]} 32. Be2 {[%clk 00:01:53]}
{[%emt 00:00:38]} b4 {[%clk 00:07:49]} {[%emt 00:01:20]} 33. Bxd4 {[%clk
00:01:11]} {[%emt 00:00:52]} cxd4 {[%clk 00:07:58]} {[%emt 00:00:01]} 34. Re5
{[%clk 00:00:54]} {[%emt 00:00:27]} d3 {[%clk 00:07:06]} {[%emt 00:01:02]} 35.
Bxd3 {[%clk 00:00:54]} {[%emt 00:00:11]} Rxd3 {[%clk 00:07:14]} 36. Rxe6 {[%clk
00:01:03]} {[%emt 00:00:01]} Rd1+ {[%clk 00:07:23]} {[%emt 00:00:01]} 37. Rxd1
{[%clk 00:01:11]} {[%emt 00:00:02]} Qxe6 {[%clk 00:07:32]} {[%emt 00:00:01]} 38.
Qd2 {[%clk 00:01:07]} {[%emt 00:00:14]} a5 {[%clk 00:06:29]} {[%emt 00:01:14]}
39. Qd7+ {[%clk 00:01:00]} {[%emt 00:00:16]} Qxd7 {[%clk 00:06:38]} {[%emt
00:00:01]} 40. Rxd7+ {[%clk 00:01:09]} Ke6 {[%clk 00:06:33]} {[%emt 00:00:15]}
41. Ra7 {[%clk 00:01:14]} {[%emt 00:00:05]} Rd8 {[%clk 00:06:42]} 42. Rxa5
{[%emt 00:00:27]} Rd2 {[%clk 00:06:51]} 43. Ra6+ {[%clk 00:01:05]} {[%emt
00:00:04]} Kf7 {[%clk 00:07:00]} 44. c5 {[%clk 00:01:06]} {[%emt 00:00:08]}
Rxf2 {[%clk 00:06:56]} {[%emt 00:00:14]} 45. c6 {[%clk 00:01:05]} {[%emt
00:00:11]} Ke6 {[%clk 00:07:01]} {[%emt 00:00:05]} 46. c7+ {[%clk 00:00:58]}
{[%emt 00:00:18]} Kd7 {[%clk 00:07:10]} 47. Rc6 {[%clk 00:01:03]} {[%emt
00:00:05]} Kc8 {[%clk 00:07:19]} 48. Rxg6 {[%clk 00:00:50]} {[%emt 00:00:23]}
Kxc7 {[%clk 00:07:28]} 49. g3 {[%clk 00:00:45]} {[%emt 00:00:15]} f4 {[%clk
00:07:30]} {[%emt 00:00:08]} 50. gxf4 {[%clk 00:00:23]} {[%emt 00:00:32]} Rxf4
{[%clk 00:07:39]} {[%emt 00:00:01]} 51. Kc2 {[%clk 00:00:28]} {[%emt 00:00:05]}
Rxh4 {[%clk 00:07:38]} {[%emt 00:00:11]} 52. Rh6 {[%clk 00:00:37]} {[%emt
00:00:01]} Rh2+ {[%clk 00:07:23]} {[%emt 00:00:25]} 53. Kb3 {[%clk 00:00:47]}
{[%emt 00:00:01]} h4 {[%clk 00:07:32]} {[%emt 00:00:21]} 1/2-1/2